[Event "Early-Titled-Tuesday-Blitz-August-29-2023"]
[Site "Chess.com"]
[Date "2023.08.29"]
[Round "3"]
[White "Iskusnyh"]
[Black "FREDERICKtheMATE"]
[Result "0-1"]
[WhiteElo "2623"]
[BlackElo "2455"]
[TimeControl "180+1"]
[EndTime "8:29:20 PDT"]
[Termination "FREDERICKtheMATE won on time"]

1. d4 {[%clk 0:03:00.9]} 1... c5 {[%clk 0:03:00.9]} 2. d5 {[%clk 0:02:59.9]}
2... g6 {[%clk 0:03:01.5]} 3. e4 {[%clk 0:02:58.8]} 3... Bg7 {[%clk 0:03:02.2]}
4. Nf3 {[%clk 0:02:58.9]} 4... e6 {[%clk 0:03:02.9]} 5. Be2 {[%clk 0:02:53.2]}
5... exd5 {[%clk 0:03:02]} 6. exd5 {[%clk 0:02:52.3]} 6... d6 {[%clk 0:03:02.6]}
7. O-O {[%clk 0:02:50.5]} 7... Ne7 {[%clk 0:03:02.8]} 8. Nc3 {[%clk 0:02:48.5]}
8... O-O {[%clk 0:03:03.1]} 9. Bf4 {[%clk 0:02:43.6]} 9... Nf5 {[%clk
0:02:59.4]} 10. Qd2 {[%clk 0:02:38.7]} 10... a6 {[%clk 0:02:55.5]} 11. a4 {[%clk
0:02:37.7]} 11... Re8 {[%clk 0:02:54.4]} 12. Rfe1 {[%clk 0:02:36.5]} 12... Nd7
{[%clk 0:02:54]} 13. Bf1 {[%clk 0:02:28.7]} 13... Nf6 {[%clk 0:02:52.3]} 14. h3
{[%clk 0:02:21.5]} 14... h5 {[%clk 0:02:49.8]} 15. Bg5 {[%clk 0:02:11.2]} 15...
Bd7 {[%clk 0:02:43]} 16. Bd3 {[%clk 0:01:59.7]} 16... Qc7 {[%clk 0:02:39]} 17.
Nh4 {[%clk 0:01:36.3]} 17... Nd4 {[%clk 0:02:25.4]} 18. Ne2 {[%clk 0:01:23.3]}
18... Nxe2+ {[%clk 0:02:13.2]} 19. Rxe2 {[%clk 0:01:20.6]} 19... c4 {[%clk
0:02:12.3]} 20. Rxe8+ {[%clk 0:01:14.7]} 20... Rxe8 {[%clk 0:02:13.2]} 21. Bf1
{[%clk 0:01:12.1]} 21... Ne4 {[%clk 0:02:11.8]} 22. Qc1 {[%clk 0:01:08.4]} 22...
Nxg5 {[%clk 0:01:53.9]} 23. Qxg5 {[%clk 0:01:09.3]} 23... Bxb2 {[%clk
0:01:53.7]} 24. Rb1 {[%clk 0:00:43.3]} 24... Bg7 {[%clk 0:01:53.3]} 25. a5
{[%clk 0:00:41.6]} 25... Re5 {[%clk 0:01:45.1]} 26. Qd2 {[%clk 0:00:38.2]} 26...
Bb5 {[%clk 0:01:37.1]} 27. Nf3 {[%clk 0:00:37.1]} 27... Re4 {[%clk 0:01:33.3]}
28. Re1 {[%clk 0:00:29.4]} 28... Rxe1 {[%clk 0:01:24.6]} 29. Qxe1 {[%clk
0:00:28.2]} 29... Bf6 {[%clk 0:01:19.7]} 30. g4 {[%clk 0:00:20.2]} 30... hxg4
{[%clk 0:01:18.2]} 31. hxg4 {[%clk 0:00:21.1]} 31... Qe7 {[%clk 0:01:18.4]} 32.
Qd1 {[%clk 0:00:14.4]} 32... Qe4 {[%clk 0:01:15.3]} 33. Ne1 {[%clk 0:00:11.4]}
33... Bc3 {[%clk 0:01:12]} 34. Ng2 {[%clk 0:00:11.3]} 34... Bxa5 {[%clk
0:01:10.4]} 35. Ne3 {[%clk 0:00:11.4]} 35... Bb6 {[%clk 0:01:07.2]} 36. Bg2
{[%clk 0:00:10.9]} 36... Qf4 {[%clk 0:01:03.5]} 37. Qd2 {[%clk 0:00:09.5]} 37...
Bxe3 {[%clk 0:01:03]} 38. fxe3 {[%clk 0:00:09.9]} 38... Qxg4 {[%clk 0:01:03.5]}
39. Qf2 {[%clk 0:00:09.5]} 39... Qg5 {[%clk 0:01:00.4]} 40. e4 {[%clk
0:00:07.8]} 40... c3 {[%clk 0:00:55.4]} 41. Qb6 {[%clk 0:00:07.6]} 41... Qe5
{[%clk 0:00:47.8]} 42. Qxb7 {[%clk 0:00:06.9]} 42... Kg7 {[%clk 0:00:45.9]} 43.
Qc7 {[%clk 0:00:06.4]} 43... Ba4 {[%clk 0:00:38.5]} 44. Qa5 {[%clk 0:00:04.3]}
44... Bxc2 {[%clk 0:00:37.9]} 45. Qxa6 {[%clk 0:00:04.7]} 45... Bxe4 {[%clk
0:00:36.4]} 46. Bxe4 {[%clk 0:00:03.1]} 46... Qxe4 {[%clk 0:00:36.9]} 47. Qxd6
{[%clk 0:00:03.2]} 47... Qd4+ {[%clk 0:00:36.9]} 48. Kg2 {[%clk 0:00:02.8]}
48... c2 {[%clk 0:00:37]} 49. Qc7 {[%clk 0:00:02.5]} 49... Qd2+ {[%clk
0:00:36.7]} 50. Kf3 {[%clk 0:00:01.9]} 50... c1=Q {[%clk 0:00:36.5]} 51. Qe5+
{[%clk 0:00:01.7]} 51... Kh7 {[%clk 0:00:30.8]} 52. Qh2+ {[%clk 0:00:01.5]}
52... Qxh2 {[%clk 0:00:30.2]} 0-1

[Event "Early-Titled-Tuesday-Blitz-August-29-2023"]
[Site "Chess.com"]
[Date "2023.08.29"]
[Round "3"]
[White "Maus7"]
[Black "GAusal"]
[Result "1-0"]
[WhiteElo "2518"]
[BlackElo "2316"]
[TimeControl "180+1"]
[EndTime "8:29:20 PDT"]
[Termination "Maus7 won by checkmate"]

1. e4 {[%clk 0:03:00.9]} 1... g6 {[%clk 0:03:00.9]} 2. d4 {[%clk 0:03:00.6]}
2... Bg7 {[%clk 0:03:01.4]} 3. Nc3 {[%clk 0:03:01.2]} 3... e5 {[%clk 0:02:59.9]}
4. dxe5 {[%clk 0:02:57.6]} 4... Bxe5 {[%clk 0:02:53]} 5. Nf3 {[%clk 0:02:55.7]}
5... Bxc3+ {[%clk 0:02:49]} 6. bxc3 {[%clk 0:02:56.6]} 6... d6 {[%clk
0:02:46.2]} 7. h4 {[%clk 0:02:42.9]} 7... Nf6 {[%clk 0:02:42.2]} 8. Bh6 {[%clk
0:02:17.2]} 8... Qe7 {[%clk 0:02:34.2]} 9. Bd3 {[%clk 0:02:10]} 9... Nc6 {[%clk
0:02:28.3]} 10. Rb1 {[%clk 0:01:57.4]} 10... Nxe4 {[%clk 0:02:24.2]} 11. O-O
{[%clk 0:01:54.1]} 11... Nxc3 {[%clk 0:02:20.6]} 12. Qc1 {[%clk 0:01:48.3]}
12... Nxb1 {[%clk 0:02:19.1]} 13. Qxb1 {[%clk 0:01:49.2]} 13... f6 {[%clk
0:02:13.4]} 14. Bb5 {[%clk 0:01:34.7]} 14... Kf7 {[%clk 0:02:05.3]} 15. Bxc6
{[%clk 0:01:26.8]} 15... bxc6 {[%clk 0:02:02.4]} 16. Re1 {[%clk 0:01:27.7]}
16... Qd8 {[%clk 0:01:55.1]} 17. Qb3+ {[%clk 0:01:21.9]} 17... d5 {[%clk
0:01:47.3]} 18. Qc3 {[%clk 0:00:55.7]} 18... Bf5 {[%clk 0:01:39.2]} 19. Ng5+
{[%clk 0:00:45.7]} 19... Kg8 {[%clk 0:01:34.6]} 20. Qxc6 {[%clk 0:00:30.4]}
20... fxg5 {[%clk 0:01:30.3]} 21. Re7 {[%clk 0:00:18.1]} 21... Qxe7 {[%clk
0:01:24.6]} 22. Qxa8+ {[%clk 0:00:18.7]} 22... Kf7 {[%clk 0:01:13.9]} 23. Qxh8
{[%clk 0:00:19.6]} 23... gxh4 {[%clk 0:01:08.5]} 24. Qxh7+ {[%clk 0:00:13.9]}
24... Ke6 {[%clk 0:01:05.1]} 25. Qg8+ {[%clk 0:00:14.4]} 25... Qf7 {[%clk
0:01:00.5]} 26. Qc8+ {[%clk 0:00:14.9]} 26... Qd7 {[%clk 0:00:56.5]} 27. Qa6+
{[%clk 0:00:12.9]} 27... Qd6 {[%clk 0:00:52.7]} 28. Qxa7 {[%clk 0:00:07.1]}
28... Bxc2 {[%clk 0:00:48.9]} 29. Qe3+ {[%clk 0:00:05.5]} 29... Kd7 {[%clk
0:00:44.4]} 30. Qh3+ {[%clk 0:00:03.4]} 30... Bf5 {[%clk 0:00:35.3]} 31. Qxh4
{[%clk 0:00:04.3]} 31... c5 {[%clk 0:00:30.1]} 32. Qa4+ {[%clk 0:00:04.6]} 32...
Qc6 {[%clk 0:00:25.8]} 33. Qa3 {[%clk 0:00:05.4]} 33... Kd6 {[%clk 0:00:25.3]}
34. Bf4+ {[%clk 0:00:05.8]} 34... Ke6 {[%clk 0:00:24.9]} 35. Qe3+ {[%clk
0:00:06.5]} 35... Kf7 {[%clk 0:00:21.9]} 36. Qe5 {[%clk 0:00:07.4]} 36... Qe6
{[%clk 0:00:21]} 37. Qc7+ {[%clk 0:00:07.3]} 37... Qe7 {[%clk 0:00:21.1]} 38.
Qc6 {[%clk 0:00:06.7]} 38... d4 {[%clk 0:00:20.3]} 39. Qd5+ {[%clk 0:00:05.7]}
39... Be6 {[%clk 0:00:19.2]} 40. Qf3 {[%clk 0:00:02.7]} 40... Bf5 {[%clk
0:00:17.9]} 41. g4 {[%clk 0:00:03]} 41... Qe1+ {[%clk 0:00:15.1]} 42. Kh2 {[%clk
0:00:02.6]} 42... Be4 {[%clk 0:00:14.2]} 43. Qb3+ {[%clk 0:00:03.1]} 43... Kg7
{[%clk 0:00:13.5]} 44. Be5+ {[%clk 0:00:01.4]} 44... Kh6 {[%clk 0:00:13.5]} 45.
Qh3+ {[%clk 0:00:01.6]} 45... Kg5 {[%clk 0:00:09.4]} 46. f4# {[%clk 0:00:02.5]}
1-0

[Event "Early-Titled-Tuesday-Blitz-August-29-2023"]
[Site "Chess.com"]
[Date "2023.08.29"]
[Round "3"]
[White "HansOnTwitch"]
[Black "Nathan_Filgueiras"]
[Result "1-0"]
[WhiteElo "2910"]
[BlackElo "2516"]
[TimeControl "180+1"]
[EndTime "8:29:21 PDT"]
[Termination "HansOnTwitch won by resignation"]

1. d4 {[%clk 0:03:00.9]} 1... Nf6 {[%clk 0:02:57.6]} 2. Nc3 {[%clk 0:03:01.6]}
2... d5 {[%clk 0:02:54.4]} 3. Bf4 {[%clk 0:03:02]} 3... c5 {[%clk 0:02:45.1]} 4.
e3 {[%clk 0:02:56.4]} 4... cxd4 {[%clk 0:02:19.8]} 5. exd4 {[%clk 0:02:57.3]}
5... a6 {[%clk 0:02:18.5]} 6. Nf3 {[%clk 0:02:55.8]} 6... Nc6 {[%clk 0:02:18.4]}
7. Ne5 {[%clk 0:02:55.1]} 7... e6 {[%clk 0:02:12.5]} 8. g4 {[%clk 0:02:52.9]}
8... Be7 {[%clk 0:02:10.9]} 9. g5 {[%clk 0:02:51.8]} 9... Nd7 {[%clk 0:02:10.2]}
10. Nf3 {[%clk 0:02:35.8]} 10... Nf8 {[%clk 0:02:07.6]} 11. h4 {[%clk
0:02:34.8]} 11... Ng6 {[%clk 0:02:06.5]} 12. Be3 {[%clk 0:02:33.3]} 12... Bd6
{[%clk 0:02:06.2]} 13. Qd2 {[%clk 0:02:31.3]} 13... Nge7 {[%clk 0:02:05.8]} 14.
Bd3 {[%clk 0:02:29.6]} 14... Bd7 {[%clk 0:02:03.7]} 15. a3 {[%clk 0:02:28.8]}
15... Rc8 {[%clk 0:02:03.3]} 16. Ne2 {[%clk 0:02:27.4]} 16... Qa5 {[%clk
0:01:58]} 17. c3 {[%clk 0:02:21.4]} 17... Qc7 {[%clk 0:01:53.8]} 18. h5 {[%clk
0:02:19.6]} 18... Na5 {[%clk 0:01:45.3]} 19. Qc2 {[%clk 0:02:16.6]} 19... Bb5
{[%clk 0:01:41.5]} 20. Bxb5+ {[%clk 0:02:11.6]} 20... axb5 {[%clk 0:01:42.4]}
21. Nh4 {[%clk 0:01:45.1]} 21... Qc4 {[%clk 0:01:13.3]} 22. b4 {[%clk
0:01:38.3]} 22... Nac6 {[%clk 0:01:09.9]} 23. Nf3 {[%clk 0:01:33.2]} 23... Nb8
{[%clk 0:00:54.7]} 24. Nd2 {[%clk 0:01:24.8]} 24... Qc7 {[%clk 0:00:54.4]} 25.
Qd3 {[%clk 0:01:23.6]} 25... Qd7 {[%clk 0:00:51.3]} 26. f4 {[%clk 0:01:22.6]}
26... Nf5 {[%clk 0:00:51]} 27. Bf2 {[%clk 0:01:22.2]} 27... Qc6 {[%clk
0:00:46.7]} 28. Nf1 {[%clk 0:01:09.5]} 28... Nd7 {[%clk 0:00:44]} 29. Ne3 {[%clk
0:01:08.9]} 29... Nxe3 {[%clk 0:00:43.2]} 30. Bxe3 {[%clk 0:01:09.8]} 30... Qc4
{[%clk 0:00:42.9]} 31. Qxc4 {[%clk 0:01:05.7]} 31... Rxc4 {[%clk 0:00:41.8]} 32.
Kd2 {[%clk 0:01:02.1]} 32... Nb6 {[%clk 0:00:41.8]} 33. Rhf1 {[%clk 0:00:52.8]}
33... g6 {[%clk 0:00:39.7]} 34. Rh1 {[%clk 0:00:51.1]} 34... Rf8 {[%clk
0:00:23.7]} 35. hxg6 {[%clk 0:00:50.7]} 35... hxg6 {[%clk 0:00:24.6]} 36. Kd3
{[%clk 0:00:51.2]} 36... Ke7 {[%clk 0:00:24.8]} 37. Rh7 {[%clk 0:00:50.5]} 37...
Na4 {[%clk 0:00:24.4]} 38. Bd2 {[%clk 0:00:49]} 38... Rcc8 {[%clk 0:00:20.7]}
39. Rah1 {[%clk 0:00:45.6]} 39... Nb6 {[%clk 0:00:21]} 40. Ng1 {[%clk
0:00:43.2]} 40... Ra8 {[%clk 0:00:20.8]} 41. Bc1 {[%clk 0:00:43]} 41... Nc4
{[%clk 0:00:20.7]} 42. Nf3 {[%clk 0:00:43.2]} 42... Nxa3 {[%clk 0:00:20.6]} 43.
Nh4 {[%clk 0:00:43.2]} 43... Ke8 {[%clk 0:00:20]} 44. Re1 {[%clk 0:00:40.4]}
44... Nc4 {[%clk 0:00:18.4]} 45. f5 {[%clk 0:00:36.8]} 45... gxf5 {[%clk
0:00:18.1]} 46. g6 {[%clk 0:00:33.9]} 46... e5 {[%clk 0:00:15]} 47. dxe5 {[%clk
0:00:23.2]} 47... Nxe5+ {[%clk 0:00:14.9]} 48. Kc2 {[%clk 0:00:23.8]} 48... Kd7
{[%clk 0:00:13.3]} 49. g7 {[%clk 0:00:23.9]} 49... Rg8 {[%clk 0:00:13]} 50. Nxf5
{[%clk 0:00:24.3]} 50... Rae8 {[%clk 0:00:11.9]} 51. Nh6 {[%clk 0:00:24.4]}
51... Rxg7 {[%clk 0:00:04.5]} 52. Rxg7 {[%clk 0:00:24.3]} 52... Ke6 {[%clk
0:00:04.4]} 53. Nxf7 {[%clk 0:00:21.9]} 1-0

[Event "Early-Titled-Tuesday-Blitz-August-29-2023"]
[Site "Chess.com"]
[Date "2023.08.29"]
[Round "3"]
[White "Fraler15"]
[Black "Herzog2012"]
[Result "1-0"]
[WhiteElo "2246"]
[BlackElo "2412"]
[TimeControl "180+1"]
[EndTime "8:29:21 PDT"]
[Termination "Fraler15 won on time"]

1. d4 {[%clk 0:03:00.9]} 1... Nf6 {[%clk 0:02:59.5]} 2. Nf3 {[%clk 0:03:00.4]}
2... e6 {[%clk 0:02:57.5]} 3. c4 {[%clk 0:03:00.4]} 3... b6 {[%clk 0:02:56.6]}
4. g3 {[%clk 0:03:00]} 4... Ba6 {[%clk 0:02:56.9]} 5. b3 {[%clk 0:02:59.6]} 5...
Bb4+ {[%clk 0:02:54.4]} 6. Bd2 {[%clk 0:02:59.2]} 6... Be7 {[%clk 0:02:53]} 7.
Nc3 {[%clk 0:02:58.5]} 7... O-O {[%clk 0:02:51.4]} 8. e4 {[%clk 0:02:57.8]} 8...
d5 {[%clk 0:02:50.2]} 9. Bd3 {[%clk 0:02:54.9]} 9... dxe4 {[%clk 0:02:44.9]} 10.
Nxe4 {[%clk 0:02:54.5]} 10... Bb7 {[%clk 0:02:44.9]} 11. Qe2 {[%clk 0:02:53.5]}
11... Nc6 {[%clk 0:02:39.5]} 12. Bc3 {[%clk 0:02:43.6]} 12... Bb4 {[%clk
0:02:34.4]} 13. Bxb4 {[%clk 0:02:39.6]} 13... Nxb4 {[%clk 0:02:34.4]} 14. Bb1
{[%clk 0:02:38.8]} 14... c5 {[%clk 0:02:12.3]} 15. dxc5 {[%clk 0:02:35.7]} 15...
Nxe4 {[%clk 0:01:58.1]} 16. Bxe4 {[%clk 0:02:34.5]} 16... Bxe4 {[%clk
0:01:57.8]} 17. Qxe4 {[%clk 0:02:33.2]} 17... Nd3+ {[%clk 0:01:55.9]} 18. Kf1
{[%clk 0:01:59.7]} 18... Nxc5 {[%clk 0:01:56.8]} 19. Qe3 {[%clk 0:01:58.4]}
19... Qc7 {[%clk 0:01:34.7]} 20. Rd1 {[%clk 0:01:55.3]} 20... Rfd8 {[%clk
0:01:32.2]} 21. Kg2 {[%clk 0:01:53.9]} 21... Qc6 {[%clk 0:01:27.4]} 22. h4
{[%clk 0:01:48.4]} 22... f6 {[%clk 0:01:23]} 23. Rhe1 {[%clk 0:01:42.4]} 23...
e5 {[%clk 0:01:22.5]} 24. Kg1 {[%clk 0:01:40.2]} 24... Ne6 {[%clk 0:01:18.3]}
25. h5 {[%clk 0:01:15.6]} 25... h6 {[%clk 0:01:17.3]} 26. Kh2 {[%clk 0:00:59.3]}
26... Kf7 {[%clk 0:01:11.8]} 27. Kg1 {[%clk 0:00:47.4]} 27... a5 {[%clk
0:01:03.2]} 28. Kh2 {[%clk 0:00:45.3]} 28... a4 {[%clk 0:01:00]} 29. Kg1 {[%clk
0:00:43.4]} 29... axb3 {[%clk 0:00:59]} 30. axb3 {[%clk 0:00:42.7]} 30... Qc5
{[%clk 0:00:52.5]} 31. Qe2 {[%clk 0:00:12]} 31... Kg8 {[%clk 0:00:23.6]} 32. Qe4
{[%clk 0:00:10.1]} 32... Ra2 {[%clk 0:00:21.4]} 33. Rxd8+ {[%clk 0:00:05.4]}
33... Nxd8 {[%clk 0:00:22.3]} 34. Re2 {[%clk 0:00:04.3]} 34... Rxe2 {[%clk
0:00:19.5]} 35. Qxe2 {[%clk 0:00:04.3]} 35... Qc6 {[%clk 0:00:16.2]} 36. Qd3
{[%clk 0:00:03]} 36... Ne6 {[%clk 0:00:14.8]} 37. Nd2 {[%clk 0:00:02.7]} 37...
Nd4 {[%clk 0:00:14.7]} 38. Ne4 {[%clk 0:00:02.6]} 38... f5 {[%clk 0:00:12.8]}
39. Nc3 {[%clk 0:00:02.7]} 39... Nf3+ {[%clk 0:00:11.7]} 40. Kf1 {[%clk
0:00:02.8]} 40... Nd4 {[%clk 0:00:08.4]} 41. Kg1 {[%clk 0:00:01.9]} 1-0

[Event "Early-Titled-Tuesday-Blitz-August-29-2023"]
[Site "Chess.com"]
[Date "2023.08.29"]
[Round "3"]
[White "chito89"]
[Black "betta2004"]
[Result "0-1"]
[WhiteElo "2840"]
[BlackElo "2528"]
[TimeControl "180+1"]
[EndTime "8:29:26 PDT"]
[Termination "betta2004 won by resignation"]

1. c4 {[%clk 0:02:55.1]} 1... g6 {[%clk 0:02:56]} 2. d4 {[%clk 0:02:53.9]} 2...
Bg7 {[%clk 0:02:56.1]} 3. Nf3 {[%clk 0:02:54.6]} 3... c5 {[%clk 0:02:52.8]} 4.
d5 {[%clk 0:02:53.1]} 4... a6 {[%clk 0:02:52.1]} 5. a4 {[%clk 0:02:41.2]} 5...
d6 {[%clk 0:02:47.6]} 6. e4 {[%clk 0:02:40.1]} 6... e5 {[%clk 0:02:43.2]} 7. a5
{[%clk 0:02:34]} 7... h6 {[%clk 0:02:32.9]} 8. Nc3 {[%clk 0:02:33.6]} 8... f5
{[%clk 0:02:31.1]} 9. Bd3 {[%clk 0:02:34.2]} 9... Nf6 {[%clk 0:02:29.4]} 10. Nh4
{[%clk 0:02:28.1]} 10... fxe4 {[%clk 0:01:55]} 11. Bc2 {[%clk 0:02:26.1]} 11...
g5 {[%clk 0:01:50.6]} 12. Ng6 {[%clk 0:02:26.2]} 12... Rg8 {[%clk 0:01:50.5]}
13. Nxe4 {[%clk 0:02:26.5]} 13... Nxe4 {[%clk 0:01:45.8]} 14. Bxe4 {[%clk
0:02:27.4]} 14... Qf6 {[%clk 0:01:45.5]} 15. h4 {[%clk 0:02:20.1]} 15... Bf5
{[%clk 0:01:41.6]} 16. Bxf5 {[%clk 0:02:18.2]} 16... Qxf5 {[%clk 0:01:42.5]} 17.
Qh5 {[%clk 0:02:18.6]} 17... Kd8 {[%clk 0:01:20.2]} 18. hxg5 {[%clk 0:02:16]}
18... Qe4+ {[%clk 0:01:19.2]} 19. Kf1 {[%clk 0:02:13.4]} 19... Qxc4+ {[%clk
0:01:15.4]} 20. Kg1 {[%clk 0:02:13]} 20... Nd7 {[%clk 0:01:02.1]} 21. gxh6
{[%clk 0:02:11.3]} 21... Kc7 {[%clk 0:01:02.4]} 22. Ne7 {[%clk 0:01:58]} 22...
Rh8 {[%clk 0:00:58.7]} 23. hxg7 {[%clk 0:01:38.7]} 23... Rxh5 {[%clk 0:00:57.7]}
24. Rxh5 {[%clk 0:01:39.6]} 24... Qg4 {[%clk 0:00:46.4]} 25. Rh8 {[%clk
0:01:39.5]} 25... Qxg7 {[%clk 0:00:44.8]} 26. Rxa8 {[%clk 0:01:38.6]} 26... Qxe7
{[%clk 0:00:45.4]} 27. Be3 {[%clk 0:01:33.8]} 27... Qh4 {[%clk 0:00:43]} 28. b3
{[%clk 0:01:14.1]} 28... Nf6 {[%clk 0:00:41.9]} 29. f3 {[%clk 0:01:07.7]} 29...
Nxd5 {[%clk 0:00:41.2]} 30. Bf2 {[%clk 0:01:08.2]} 30... Qb4 {[%clk 0:00:38.6]}
31. Ra4 {[%clk 0:00:57.1]} 31... Qxb3 {[%clk 0:00:37.1]} 32. Rg4 {[%clk
0:00:57.8]} 32... Nf4 {[%clk 0:00:30.5]} 33. Kh2 {[%clk 0:00:55.3]} 33... Qc2
{[%clk 0:00:25.5]} 34. Be3 {[%clk 0:00:55.2]} 34... Qh7+ {[%clk 0:00:23.4]} 35.
Kg1 {[%clk 0:00:55.3]} 35... Ne2+ {[%clk 0:00:21.9]} 36. Kf2 {[%clk 0:00:55.5]}
36... Qc2 {[%clk 0:00:22.3]} 37. Rg7+ {[%clk 0:00:47.4]} 37... Kc6 {[%clk
0:00:20.4]} 38. Rb8 {[%clk 0:00:25]} 38... Nd4+ {[%clk 0:00:16.7]} 39. Kg1
{[%clk 0:00:25.4]} 39... Nf5 {[%clk 0:00:13]} 40. Rbxb7 {[%clk 0:00:17.4]} 40...
Nxe3 {[%clk 0:00:12.2]} 41. Rb6+ {[%clk 0:00:15.2]} 41... Kd5 {[%clk 0:00:12.2]}
42. Kh2 {[%clk 0:00:15.4]} 42... Qd1 {[%clk 0:00:09.8]} 43. Rg6 {[%clk 0:00:15]}
43... Nc4 {[%clk 0:00:09.1]} 44. Rxa6 {[%clk 0:00:14.4]} 44... Qd3 {[%clk
0:00:09]} 45. Rg7 {[%clk 0:00:12.7]} 45... Qf5 {[%clk 0:00:09]} 46. Ra8 {[%clk
0:00:10.3]} 46... Kd4 {[%clk 0:00:09.1]} 47. a6 {[%clk 0:00:08.9]} 47... Qf4+
{[%clk 0:00:09.2]} 48. Kh1 {[%clk 0:00:09]} 48... Qc1+ {[%clk 0:00:09.2]} 49.
Kh2 {[%clk 0:00:09]} 49... Qh6+ {[%clk 0:00:09.8]} 50. Kg1 {[%clk 0:00:07.2]}
50... Qxg7 {[%clk 0:00:10]} 51. a7 {[%clk 0:00:08.1]} 51... Qb7 {[%clk
0:00:09.8]} 0-1

[Event "Early-Titled-Tuesday-Blitz-August-29-2023"]
[Site "Chess.com"]
[Date "2023.08.29"]
[Round "3"]
[White "le_poisson"]
[Black "MarcoRiehle"]
[Result "0-1"]
[WhiteElo "2334"]
[BlackElo "2820"]
[TimeControl "180+1"]
[EndTime "8:29:28 PDT"]
[Termination "MarcoRiehle won by checkmate"]

1. e4 {[%clk 0:03:00.9]} 1... e5 {[%clk 0:02:57.7]} 2. Nc3 {[%clk 0:03:00.5]}
2... Nf6 {[%clk 0:02:40.6]} 3. d4 {[%clk 0:03:00]} 3... exd4 {[%clk 0:02:40.4]}
4. Qxd4 {[%clk 0:03:00.9]} 4... Nc6 {[%clk 0:02:40.7]} 5. Qd3 {[%clk 0:03:00.3]}
5... d5 {[%clk 0:02:40.8]} 6. Bf4 {[%clk 0:02:54.2]} 6... dxe4 {[%clk
0:02:18.5]} 7. Qxd8+ {[%clk 0:02:52.6]} 7... Kxd8 {[%clk 0:02:18.1]} 8. O-O-O+
{[%clk 0:02:47.7]} 8... Bd6 {[%clk 0:02:11]} 9. Nb5 {[%clk 0:02:28.7]} 9... Ne8
{[%clk 0:02:10.8]} 10. Bc4 {[%clk 0:02:19.3]} 10... Be6 {[%clk 0:01:49.3]} 11.
Bxe6 {[%clk 0:02:09.1]} 11... fxe6 {[%clk 0:01:50.2]} 12. Nxd6 {[%clk
0:02:08.5]} 12... Nxd6 {[%clk 0:01:45.6]} 13. Bxd6 {[%clk 0:02:08.4]} 13... cxd6
{[%clk 0:01:46.5]} 14. Rxd6+ {[%clk 0:02:08.7]} 14... Ke7 {[%clk 0:01:43.6]} 15.
Rd2 {[%clk 0:02:05.8]} 15... Rhd8 {[%clk 0:01:22.9]} 16. Re2 {[%clk 0:02:03.5]}
16... Rd4 {[%clk 0:01:16.3]} 17. Nh3 {[%clk 0:01:56.2]} 17... Rc8 {[%clk
0:01:14]} 18. c3 {[%clk 0:01:44.8]} 18... Ra4 {[%clk 0:01:08.1]} 19. b3 {[%clk
0:01:39.4]} 19... Nd4 {[%clk 0:01:01.3]} 20. bxa4 {[%clk 0:01:14.3]} 20... Nxe2+
{[%clk 0:01:01]} 21. Kd2 {[%clk 0:01:13.6]} 21... Nxc3 {[%clk 0:00:30.3]} 22.
Rc1 {[%clk 0:01:13.3]} 22... e3+ {[%clk 0:00:30.9]} 23. Kxe3 {[%clk 0:00:24.7]}
23... Rc6 {[%clk 0:00:24.6]} 24. Nf4 {[%clk 0:00:14.7]} 24... Nxa4 {[%clk
0:00:14.5]} 25. Rb1 {[%clk 0:00:11]} 25... b6 {[%clk 0:00:13]} 26. Nd3 {[%clk
0:00:10.1]} 26... Nc3 {[%clk 0:00:13]} 27. Ra1 {[%clk 0:00:07.5]} 27... Nd5+
{[%clk 0:00:13.2]} 28. Kd2 {[%clk 0:00:07]} 28... a5 {[%clk 0:00:13.1]} 29. a3
{[%clk 0:00:06.7]} 29... Kd6 {[%clk 0:00:11.9]} 30. h4 {[%clk 0:00:04.1]} 30...
Rc4 {[%clk 0:00:11.3]} 31. g3 {[%clk 0:00:04]} 31... e5 {[%clk 0:00:10.8]} 32.
Re1 {[%clk 0:00:03]} 32... e4 {[%clk 0:00:07.8]} 33. Nb2 {[%clk 0:00:02.4]}
33... Rd4+ {[%clk 0:00:08.1]} 34. Kc2 {[%clk 0:00:02.5]} 34... b5 {[%clk
0:00:06.5]} 35. Nd1 {[%clk 0:00:02]} 35... h5 {[%clk 0:00:02.9]} 36. Ne3 {[%clk
0:00:02.3]} 36... Nxe3+ {[%clk 0:00:03.1]} 37. Rxe3 {[%clk 0:00:02.6]} 37... Kd5
{[%clk 0:00:03.1]} 38. Rb3 {[%clk 0:00:02.8]} 38... Kc5 {[%clk 0:00:03.3]} 39.
Rc3+ {[%clk 0:00:01.7]} 39... Rc4 {[%clk 0:00:03.3]} 40. Kd2 {[%clk 0:00:01.5]}
40... Rxc3 {[%clk 0:00:03.6]} 41. Kxc3 {[%clk 0:00:02.4]} 41... b4+ {[%clk
0:00:04.1]} 42. axb4+ {[%clk 0:00:02.6]} 42... axb4+ {[%clk 0:00:04.8]} 43. Kb3
{[%clk 0:00:03.5]} 43... Kb5 {[%clk 0:00:05.3]} 44. Kb2 {[%clk 0:00:03.7]} 44...
Kc4 {[%clk 0:00:06.2]} 45. Kc2 {[%clk 0:00:04.2]} 45... b3+ {[%clk 0:00:06.6]}
46. Kb2 {[%clk 0:00:04.8]} 46... Kb4 {[%clk 0:00:07]} 47. Kb1 {[%clk 0:00:05.4]}
47... Kc3 {[%clk 0:00:07.9]} 48. Kc1 {[%clk 0:00:06]} 48... b2+ {[%clk
0:00:08.4]} 49. Kb1 {[%clk 0:00:06.6]} 49... Kb3 {[%clk 0:00:07.9]} 50. g4
{[%clk 0:00:05.8]} 50... hxg4 {[%clk 0:00:08.2]} 51. h5 {[%clk 0:00:06.5]} 51...
g3 {[%clk 0:00:06.7]} 52. h6 {[%clk 0:00:06.5]} 52... gxf2 {[%clk 0:00:06.8]}
53. hxg7 {[%clk 0:00:06]} 53... f1=Q# {[%clk 0:00:07.7]} 0-1